[Event "*** Titled Tuesday 3|2 Blitz"]
[Site "Chess.com"]
[Date "2016.03.01"]
[Round "8"]
[White "jk13"]
[Black "kleinebeer98"]
[Result "1/2-1/2"]
[WhiteElo "2433"]
[BlackElo "2502"]
[TimeControl "180+2"]
[EndTime "13:22:02 PST"]
[Termination "Game drawn by agreement"]

1. e4 {[%clk 0:03:01.9]} 1... c5 {[%clk 0:02:59.8]} 2. c3 {[%clk 0:03:02.8]}
2... d5 {[%clk 0:03:00.5]} 3. exd5 {[%clk 0:03:04.4]} 3... Qxd5 {[%clk
0:03:02.4]} 4. d4 {[%clk 0:03:06.1]} 4... g6 {[%clk 0:03:04]} 5. Nf3 {[%clk
0:03:07.6]} 5... Bg7 {[%clk 0:03:05.3]} 6. Na3 {[%clk 0:03:08.5]} 6... cxd4
{[%clk 0:03:06.8]} 7. Nb5 {[%clk 0:03:07.9]} 7... Na6 {[%clk 0:03:01.1]} 8.
Nbxd4 {[%clk 0:03:05.9]} 8... e5 {[%clk 0:02:47.4]} 9. Bb5+ {[%clk 0:02:50.6]}
9... Bd7 {[%clk 0:02:47.3]} 10. Bxd7+ {[%clk 0:02:51.2]} 10... Qxd7 {[%clk
0:02:45.1]} 11. Qe2 {[%clk 0:02:52.1]} 11... Qe7 {[%clk 0:02:20.3]} 12. Nb3
{[%clk 0:02:40.8]} 12... e4 {[%clk 0:02:08.4]} 13. Nfd4 {[%clk 0:02:30.8]} 13...
Nf6 {[%clk 0:02:06]} 14. O-O {[%clk 0:02:27.2]} 14... O-O {[%clk 0:02:06.5]} 15.
Bg5 {[%clk 0:02:27.6]} 15... h6 {[%clk 0:01:53.2]} 16. Bh4 {[%clk 0:02:28.5]}
16... Rfe8 {[%clk 0:01:49.9]} 17. Rfe1 {[%clk 0:02:29]} 17... Nc7 {[%clk
0:01:35.5]} 18. a4 {[%clk 0:02:27.9]} 18... Ncd5 {[%clk 0:01:35.1]} 19. Bg3
{[%clk 0:02:16.4]} 19... Nh5 {[%clk 0:01:34.3]} 20. Qg4 {[%clk 0:02:12.3]} 20...
e3 {[%clk 0:01:12.9]} 21. fxe3 {[%clk 0:02:08.9]} 21... Nxe3 {[%clk 0:01:13.7]}
22. Qf3 {[%clk 0:02:08.4]} 22... Nxg3 {[%clk 0:01:06.4]} 23. Qxg3 {[%clk
0:02:10.3]} 23... Qe5 {[%clk 0:00:57.1]} 24. Qf3 {[%clk 0:02:02]} 24... Qe4
{[%clk 0:00:36.5]} 25. Qxe4 {[%clk 0:01:41.5]} 25... Rxe4 {[%clk 0:00:38.4]} 26.
Nc5 {[%clk 0:01:42.9]} 26... Rxd4 {[%clk 0:00:36.7]} 27. Rxe3 {[%clk 0:01:35.3]}
27... Rd2 {[%clk 0:00:36.5]} 28. Rb1 {[%clk 0:01:33.6]} 28... Rad8 {[%clk
0:00:33.3]} 29. Nb3 {[%clk 0:01:19.7]} 29... Rd1+ {[%clk 0:00:27]} 30. Rxd1
{[%clk 0:01:14.5]} 30... Rxd1+ {[%clk 0:00:28.9]} 31. Kf2 {[%clk 0:01:15.9]}
31... Rb1 {[%clk 0:00:30.2]} 32. Re2 {[%clk 0:01:17.4]} 32... Bxc3 {[%clk
0:00:31.5]} 33. bxc3 {[%clk 0:01:11.1]} 33... Rxb3 {[%clk 0:00:33.4]} 34. Re7
{[%clk 0:01:12.3]} 34... a6 {[%clk 0:00:31.2]} 35. Rc7 {[%clk 0:01:12.2]} 35...
b5 {[%clk 0:00:30.6]} 36. axb5 {[%clk 0:01:13.2]} 36... axb5 {[%clk 0:00:31.3]}
37. h4 {[%clk 0:01:14.2]} 37... h5 {[%clk 0:00:31.9]} 38. c4 {[%clk 0:01:12.6]}
38... Rc3 {[%clk 0:00:31.3]} 39. c5 {[%clk 0:01:12.2]} 39... b4 {[%clk
0:00:32.8]} 40. Rb7 {[%clk 0:01:13.2]} 40... b3 {[%clk 0:00:32.9]} 41. c6 {[%clk
0:01:14.3]} 41... Rc2+ {[%clk 0:00:33.6]} 42. Kf3 {[%clk 0:01:14.6]} 42... b2
{[%clk 0:00:33.5]} 43. c7 {[%clk 0:01:15.7]} 43... Rc3+ {[%clk 0:00:33.6]} 44.
Kf2 {[%clk 0:01:16]} 44... Rc2+ {[%clk 0:00:34.1]} 45. Kf3 {[%clk 0:01:16.5]}
45... Rc3+ {[%clk 0:00:34.4]} 46. Kf2 {[%clk 0:01:17]} 46... Rxc7 {[%clk
0:00:35.6]} 47. Rxb2 {[%clk 0:01:17.2]} 47... Rc4 {[%clk 0:00:37]} 48. g3 {[%clk
0:01:17.9]} 48... Kf8 {[%clk 0:00:36.7]} 49. Rb7 {[%clk 0:01:16.5]} 49... Re4
{[%clk 0:00:36.4]} 50. Rc7 {[%clk 0:01:16.5]} 50... Re7 {[%clk 0:00:37.4]} 51.
Rc6 {[%clk 0:01:17.2]} 51... Ke8 {[%clk 0:00:36.8]} 52. Kf3 {[%clk 0:01:16.9]}
52... Kd7 {[%clk 0:00:37.6]} 53. Ra6 {[%clk 0:01:17.8]} 53... Re1 {[%clk
0:00:33.9]} 54. Ra7+ {[%clk 0:01:18.3]} 54... Ke6 {[%clk 0:00:34.6]} 55. Ra6+
{[%clk 0:01:19.3]} 55... Kf5 {[%clk 0:00:35.3]} 56. Ra5+ {[%clk 0:01:20.4]}
56... Re5 {[%clk 0:00:36.9]} 57. Ra3 {[%clk 0:01:20.2]} 57... Rb5 {[%clk
0:00:38]} 58. Rd3 {[%clk 0:01:20.5]} 58... f6 {[%clk 0:00:39.1]} 59. Rc3 {[%clk
0:01:21.3]} 59... Ke5 {[%clk 0:00:39.8]} 60. Re3+ {[%clk 0:01:21.4]} 60... Kd5
{[%clk 0:00:40.3]} 61. Re8 {[%clk 0:01:20.1]} 61... Rb3+ {[%clk 0:00:37.5]} 62.
Kf2 {[%clk 0:01:21.1]} 62... Kd4 {[%clk 0:00:31.3]} 63. Re6 {[%clk 0:01:19.6]}
63... g5 {[%clk 0:00:28]} 64. Rxf6 {[%clk 0:01:16.1]} 64... gxh4 {[%clk
0:00:22.5]} 65. Rf4+ {[%clk 0:01:16.1]} 65... Ke5 {[%clk 0:00:18.8]} 66. Rxh4
{[%clk 0:01:16.8]} 66... Kf6 {[%clk 0:00:19.3]} 67. Rxh5 {[%clk 0:01:17.8]}
67... Kg6 {[%clk 0:00:20.8]} 68. Rd5 {[%clk 0:01:18.3]} 68... Rb6 {[%clk
0:00:22.3]} 69. Kf3 {[%clk 0:01:19.1]} 69... Kf6 {[%clk 0:00:23.7]} 70. Kg4
{[%clk 0:01:18.7]} 70... Kg6 {[%clk 0:00:25.2]} 71. Kh4 {[%clk 0:01:18.5]} 71...
Kh6 {[%clk 0:00:26.4]} 72. g4 {[%clk 0:01:19.1]} 72... Kg6 {[%clk 0:00:28]} 73.
Rg5+ {[%clk 0:01:20]} 73... Kf6 {[%clk 0:00:28.8]} 74. Rh5 {[%clk 0:01:20.9]}
74... Kg6 {[%clk 0:00:30.3]} 75. Rh8 {[%clk 0:01:21.8]} 75... Kg7 {[%clk
0:00:31.5]} 76. Rd8 {[%clk 0:01:22]} 76... Rh6+ {[%clk 0:00:32.6]} 77. Kg5
{[%clk 0:01:22.1]} 77... Rg6+ {[%clk 0:00:33.8]} 78. Kf5 {[%clk 0:01:23.7]}
78... Rf6+ {[%clk 0:00:35.2]} 79. Ke5 {[%clk 0:01:25]} 79... Ra6 {[%clk
0:00:36]} 80. Kf4 {[%clk 0:01:21.2]} 80... Ra4+ {[%clk 0:00:36.6]} 81. Kg5
{[%clk 0:01:21.6]} 81... Ra5+ {[%clk 0:00:38.1]} 82. Kh4 {[%clk 0:01:23.1]}
82... Ra6 {[%clk 0:00:39]} 83. g5 {[%clk 0:01:22.8]} 83... Kg6 {[%clk
0:00:39.1]} 84. Rg8+ {[%clk 0:01:23.1]} 84... Kh7 {[%clk 0:00:39.4]} 85. Rb8
{[%clk 0:01:24.2]} 85... Kg6 {[%clk 0:00:40.7]} 86. Rb4 {[%clk 0:01:24.5]} 86...
Rc6 {[%clk 0:00:40.6]} 87. Rd4 {[%clk 0:01:25.3]} 87... Ra6 {[%clk 0:00:41.8]}
88. Re4 {[%clk 0:01:26.2]} 88... Rb6 {[%clk 0:00:43.2]} 1/2-1/2

[Event "*** Titled Tuesday 3|2 Blitz"]
[Site "Chess.com"]
[Date "2016.03.01"]
[Round "8"]
[White "Yaacovn"]
[Black "maciek_92"]
[Result "0-1"]
[WhiteElo "2619"]
[BlackElo "2440"]
[TimeControl "180+2"]
[EndTime "13:26:36 PST"]
[Termination "maciek_92 won by resignation"]

1. d4 {[%clk 0:03:01.9]} 1... Nf6 {[%clk 0:02:58.9]} 2. Nf3 {[%clk 0:03:03.2]}
2... e6 {[%clk 0:02:58.8]} 3. c4 {[%clk 0:03:04.4]} 3... b6 {[%clk 0:02:58.9]}
4. g3 {[%clk 0:03:05.6]} 4... Ba6 {[%clk 0:03:00]} 5. Qc2 {[%clk 0:03:06.5]}
5... Bb7 {[%clk 0:02:57.2]} 6. Bg2 {[%clk 0:03:07.7]} 6... c5 {[%clk 0:02:58.8]}
7. dxc5 {[%clk 0:03:08.5]} 7... Bxc5 {[%clk 0:03:00.7]} 8. O-O {[%clk
0:03:04.6]} 8... Be4 {[%clk 0:02:48.8]} 9. Qd1 {[%clk 0:03:04.8]} 9... O-O
{[%clk 0:02:29.1]} 10. Nc3 {[%clk 0:03:05.4]} 10... Bb7 {[%clk 0:02:29.4]} 11.
b3 {[%clk 0:03:06.3]} 11... d5 {[%clk 0:02:26.9]} 12. Ne5 {[%clk 0:03:04.6]}
12... Nbd7 {[%clk 0:02:23.6]} 13. Bf4 {[%clk 0:03:05.6]} 13... Nxe5 {[%clk
0:02:06.4]} 14. Bxe5 {[%clk 0:03:07.5]} 14... Nd7 {[%clk 0:02:07.6]} 15. Bf4
{[%clk 0:03:07.5]} 15... Qf6 {[%clk 0:02:00.6]} 16. Rc1 {[%clk 0:03:02.5]} 16...
Rac8 {[%clk 0:01:41.2]} 17. cxd5 {[%clk 0:03:00.9]} 17... Ba3 {[%clk 0:01:34.9]}
18. Ne4 {[%clk 0:02:51.6]} 18... Qg6 {[%clk 0:01:21.2]} 19. Rxc8 {[%clk
0:02:52.2]} 19... Bxc8 {[%clk 0:01:15.2]} 20. Nd6 {[%clk 0:02:50.2]} 20... Ba6
{[%clk 0:01:09.6]} 21. dxe6 {[%clk 0:02:47.8]} 21... Qxe6 {[%clk 0:01:10]} 22.
Bd5 {[%clk 0:02:48.4]} 22... Qe7 {[%clk 0:00:48.9]} 23. Bc4 {[%clk 0:02:37.3]}
23... Bxc4 {[%clk 0:00:49.4]} 24. Nxc4 {[%clk 0:02:39.2]} 24... Bc5 {[%clk
0:00:48.4]} 25. e4 {[%clk 0:02:36.7]} 25... Nf6 {[%clk 0:00:47.6]} 26. e5 {[%clk
0:02:36.7]} 26... Ne4 {[%clk 0:00:27.5]} 27. Qf3 {[%clk 0:02:37.5]} 27... Ng5
{[%clk 0:00:25.3]} 28. Qg4 {[%clk 0:02:34.5]} 28... Ne6 {[%clk 0:00:25.6]} 29.
Be3 {[%clk 0:02:31.3]} 29... Rd8 {[%clk 0:00:24.8]} 30. h4 {[%clk 0:02:30.2]}
30... Bxe3 {[%clk 0:00:25.3]} 31. fxe3 {[%clk 0:02:29.6]} 31... Qc5 {[%clk
0:00:26.2]} 32. Qf3 {[%clk 0:02:28.6]} 32... Rd7 {[%clk 0:00:23.3]} 33. Qa8+
{[%clk 0:02:28.6]} 33... Rd8 {[%clk 0:00:19.9]} 34. Qe4 {[%clk 0:02:29.5]} 34...
Rf8 {[%clk 0:00:17.6]} 35. Nd6 {[%clk 0:02:28.5]} 35... Qa5 {[%clk 0:00:17.3]}
36. a4 {[%clk 0:02:29]} 36... Qd2 {[%clk 0:00:18]} 37. Nc4 {[%clk 0:02:26.3]}
37... Qc3 {[%clk 0:00:18.1]} 38. h5 {[%clk 0:02:16.9]} 38... Qxb3 {[%clk
0:00:18.8]} 39. h6 {[%clk 0:02:18]} 39... Qxa4 {[%clk 0:00:19]} 40. hxg7 {[%clk
0:02:17.6]} 40... Nxg7 {[%clk 0:00:20.2]} 41. Qd5 {[%clk 0:02:17.6]} 41... Qe8
{[%clk 0:00:19.3]} 42. Nd6 {[%clk 0:02:17.3]} 42... Qe6 {[%clk 0:00:20.4]} 43.
Qd4 {[%clk 0:02:16.8]} 43... Qg6 {[%clk 0:00:19.5]} 44. Ne4 {[%clk 0:02:13.2]}
44... Ne6 {[%clk 0:00:19.1]} 45. Qd5 {[%clk 0:02:11.8]} 45... Kg7 {[%clk
0:00:18.6]} 46. Kg2 {[%clk 0:02:10.3]} 46... Rc8 {[%clk 0:00:18.7]} 47. Rf2
{[%clk 0:02:08.1]} 47... Rd8 {[%clk 0:00:17.9]} 48. Nd6 {[%clk 0:02:09.4]} 48...
Rf8 {[%clk 0:00:17.5]} 49. e4 {[%clk 0:02:09]} 49... Qh5 {[%clk 0:00:17.2]} 50.
Nf5+ {[%clk 0:02:09.4]} 50... Kh8 {[%clk 0:00:18.5]} 51. Nd6 {[%clk 0:02:05.1]}
51... Ng5 {[%clk 0:00:18]} 52. e6 {[%clk 0:02:00.8]} 52... Qh3+ {[%clk
0:00:18.5]} 53. Kg1 {[%clk 0:02:02.3]} 53... Qxg3+ {[%clk 0:00:17.3]} 54. Kf1
{[%clk 0:02:03.6]} 54... Qh3+ {[%clk 0:00:18.5]} 55. Ke2 {[%clk 0:02:01.1]}
55... Qg4+ {[%clk 0:00:15.7]} 56. Kd2 {[%clk 0:02:00.7]} 56... Nxe6 {[%clk
0:00:14.3]} 57. Qe5+ {[%clk 0:01:54]} 57... Kg8 {[%clk 0:00:11]} 58. Nf5 {[%clk
0:01:54.9]} 58... Qg5+ {[%clk 0:00:11.5]} 59. Ke2 {[%clk 0:01:51.3]} 59... Rd8
{[%clk 0:00:12.8]} 60. Qc3 {[%clk 0:01:46.4]} 60... Qg4+ {[%clk 0:00:10.8]} 61.
Rf3 {[%clk 0:01:40.5]} 61... Qg2+ {[%clk 0:00:09.9]} 62. Ke3 {[%clk 0:01:39.4]}
62... Qg5+ {[%clk 0:00:10.9]} 63. Ke2 {[%clk 0:01:39.5]} 63... Qg2+ {[%clk
0:00:10.7]} 64. Ke3 {[%clk 0:01:37.2]} 64... Qg1+ {[%clk 0:00:11.9]} 65. Rf2
{[%clk 0:01:35.5]} 65... Qg5+ {[%clk 0:00:11.8]} 66. Kf3 {[%clk 0:01:33.1]}
66... Nf4 {[%clk 0:00:08.3]} 67. Rd2 {[%clk 0:01:25.4]} 67... Rxd2 {[%clk
0:00:07.7]} 68. Qxd2 {[%clk 0:01:25]} 68... Ne6 {[%clk 0:00:09.6]} 69. Qd6
{[%clk 0:01:23.2]} 69... h5 {[%clk 0:00:09.1]} 70. Qe5 {[%clk 0:01:18]} 70...
Qf4+ {[%clk 0:00:05.9]} 71. Qxf4 {[%clk 0:01:18.9]} 71... Nxf4 {[%clk
0:00:07.8]} 72. Kxf4 {[%clk 0:01:20.8]} 72... a5 {[%clk 0:00:09.4]} 73. Nd4
{[%clk 0:01:18.1]} 73... a4 {[%clk 0:00:09.4]} 74. Nb5 {[%clk 0:01:19.3]} 74...
Kf8 {[%clk 0:00:10.6]} 75. Kg5 {[%clk 0:01:18.4]} 75... Ke7 {[%clk 0:00:12.1]}
76. Kxh5 {[%clk 0:01:17.4]} 76... Kd7 {[%clk 0:00:13.4]} 77. Kg5 {[%clk
0:01:17.3]} 77... Kc6 {[%clk 0:00:15]} 78. Nc3 {[%clk 0:01:15.1]} 78... b5
{[%clk 0:00:16.3]} 79. Kf6 {[%clk 0:01:16.3]} 79... Kc5 {[%clk 0:00:16.7]} 80.
e5 {[%clk 0:01:13.8]} 80... a3 {[%clk 0:00:16.5]} 81. Kxf7 {[%clk 0:01:14.2]}
81... b4 {[%clk 0:00:18]} 82. Ne4+ {[%clk 0:01:05.5]} 82... Kd5 {[%clk
0:00:16.2]} 83. e6 {[%clk 0:01:05]} 83... a2 {[%clk 0:00:16.6]} 84. Nf6+ {[%clk
0:01:02.3]} 84... Kc4 {[%clk 0:00:15.7]} 85. e7 {[%clk 0:01:04.2]} 85... a1=Q
{[%clk 0:00:16.2]} 86. e8=Q {[%clk 0:01:06.1]} 86... Qa7+ {[%clk 0:00:16.8]} 87.
Kg6 {[%clk 0:01:07.5]} 87... Qg1+ {[%clk 0:00:17.6]} 88. Kf7 {[%clk 0:01:08.8]}
88... Qa7+ {[%clk 0:00:18.3]} 89. Kg6 {[%clk 0:01:05.2]} 89... Qg1+ {[%clk
0:00:18.5]} 90. Kf5 {[%clk 0:01:06.2]} 90... Qf2+ {[%clk 0:00:19.2]} 91. Kg5
{[%clk 0:01:04.8]} 91... Qg3+ {[%clk 0:00:19.6]} 92. Ng4 {[%clk 0:01:05.9]}
92... b3 {[%clk 0:00:17.7]} 93. Qa4+ {[%clk 0:01:06.9]} 93... Kc3 {[%clk
0:00:18.1]} 94. Qa5+ {[%clk 0:01:08.2]} 94... Kc2 {[%clk 0:00:18.6]} 95. Qf5+
{[%clk 0:01:09.4]} 95... Kb2 {[%clk 0:00:18.8]} 96. Kf6 {[%clk 0:01:08.9]} 96...
Qc3+ {[%clk 0:00:19.2]} 97. Ne5 {[%clk 0:01:10]} 97... Ka2 {[%clk 0:00:18.5]}
98. Qe6 {[%clk 0:01:10.1]} 98... Kb1 {[%clk 0:00:15.5]} 99. Qf5+ {[%clk
0:01:09.6]} 99... Qc2 {[%clk 0:00:16.5]} 100. Qf1+ {[%clk 0:01:08.5]} 100... Ka2
{[%clk 0:00:15.5]} 101. Qa6+ {[%clk 0:01:08.6]} 101... Kb1 {[%clk 0:00:16.6]}
102. Nc4 {[%clk 0:01:09.2]} 102... Qc3+ {[%clk 0:00:16.9]} 103. Ke6 {[%clk
0:01:08.9]} 103... Qh3+ {[%clk 0:00:16.3]} 104. Ke5 {[%clk 0:01:09.3]} 104...
Qc3+ {[%clk 0:00:16.4]} 105. Kd5 {[%clk 0:01:09.9]} 105... b2 {[%clk 0:00:17.1]}
106. Qa4 {[%clk 0:00:58.7]} 106... Qd3+ {[%clk 0:00:16.2]} 107. Kc5 {[%clk
0:00:58.8]} 107... Qc2 {[%clk 0:00:16.1]} 108. Qa3 {[%clk 0:00:54.4]} 108...
Qf5+ {[%clk 0:00:10.1]} 109. Kd4 {[%clk 0:00:53.5]} 109... Qf6+ {[%clk
0:00:11.2]} 110. Ke4 {[%clk 0:00:50.5]} 110... Qg6+ {[%clk 0:00:10.5]} 111. Kd4
{[%clk 0:00:49.8]} 111... Qf6+ {[%clk 0:00:10.1]} 112. Kd3 {[%clk 0:00:51]}
112... Qf5+ {[%clk 0:00:10]} 113. Ke2 {[%clk 0:00:51.6]} 113... Qg4+ {[%clk
0:00:08.5]} 114. Kd2 {[%clk 0:00:50.6]} 114... Qxc4 {[%clk 0:00:08.3]} 115. Qa7
{[%clk 0:00:50.7]} 115... Qc2+ {[%clk 0:00:07.6]} 116. Ke1 {[%clk 0:00:51.7]}
116... Qc3+ {[%clk 0:00:08.1]} 117. Kd1 {[%clk 0:00:52.7]} 117... Qd3+ {[%clk
0:00:09]} 118. Ke1 {[%clk 0:00:54.1]} 118... Kc2 {[%clk 0:00:09.7]} 119. Qa4+
{[%clk 0:00:55]} 119... Kc1 {[%clk 0:00:09.1]} 120. Qf4+ {[%clk 0:00:56]} 120...
Kb1 {[%clk 0:00:09.6]} 121. Qa4 {[%clk 0:00:55.9]} 121... Qc2 {[%clk 0:00:09.4]}
122. Qa5 {[%clk 0:00:56.1]} 122... Kc1 {[%clk 0:00:09.4]} 123. Qg5+ {[%clk
0:00:56.8]} 123... Kb1 {[%clk 0:00:10.8]} 124. Qa5 {[%clk 0:00:58.4]} 124... Qd3
{[%clk 0:00:09.4]} 125. Qa7 {[%clk 0:00:54.8]} 125... Qc4 {[%clk 0:00:06.9]}
126. Qh7+ {[%clk 0:00:55]} 126... Kc1 {[%clk 0:00:07.5]} 127. Qh6+ {[%clk
0:00:54.6]} 127... Kc2 {[%clk 0:00:08.8]} 128. Qh7+ {[%clk 0:00:55.9]} 128...
Qd3 {[%clk 0:00:09.1]} 129. Qh2+ {[%clk 0:00:54.4]} 129... Kc3 {[%clk 0:00:09]}
130. Qe5+ {[%clk 0:00:55]} 130... Qd4 {[%clk 0:00:09.8]} 131. Qc7+ {[%clk
0:00:56]} 131... Kd3 {[%clk 0:00:08.6]} 132. Qh7+ {[%clk 0:00:55.1]} 132... Qe4+
{[%clk 0:00:09.5]} 0-1

[Event "*** Titled Tuesday 3|2 Blitz"]
[Site "Chess.com"]
[Date "2016.03.01"]
[Round "9"]
[White "Tesla17"]
[Black "evgenyermolaev"]
[Result "1-0"]
[WhiteElo "2293"]
[BlackElo "2072"]
[TimeControl "180+2"]
[EndTime "13:33:46 PST"]
[Termination "Tesla17 won by resignation"]

1. d4 {[%clk 0:03:01.9]} 1... Nf6 {[%clk 0:03:00.3]} 2. c4 {[%clk 0:03:00.8]}
2... c5 {[%clk 0:03:01]} 3. d5 {[%clk 0:03:01.8]} 3... g6 {[%clk 0:03:02.5]} 4.
Nc3 {[%clk 0:03:02.9]} 4... Bg7 {[%clk 0:03:04.1]} 5. e4 {[%clk 0:03:04.4]} 5...
d6 {[%clk 0:03:05.6]} 6. Bd3 {[%clk 0:03:05.9]} 6... O-O {[%clk 0:03:06.6]} 7.
h3 {[%clk 0:03:07.4]} 7... e6 {[%clk 0:03:08]} 8. Nf3 {[%clk 0:03:08.8]} 8...
exd5 {[%clk 0:03:09.4]} 9. cxd5 {[%clk 0:03:10.7]} 9... b5 {[%clk 0:03:10.5]}
10. Nxb5 {[%clk 0:03:11.4]} 10... Re8 {[%clk 0:03:08.2]} 11. O-O {[%clk
0:03:12.4]} 11... Nxe4 {[%clk 0:03:02.3]} 12. Qa4 {[%clk 0:03:10.7]} 12... Bd7
{[%clk 0:02:41.7]} 13. Re1 {[%clk 0:03:10.9]} 13... a6 {[%clk 0:02:37]} 14. Qa3
{[%clk 0:03:09.6]} 14... Qb6 {[%clk 0:02:15.2]} 15. Nc3 {[%clk 0:03:08.4]} 15...
Nxc3 {[%clk 0:02:07.3]} 16. bxc3 {[%clk 0:03:10.3]} 16... Rxe1+ {[%clk
0:02:04.1]} 17. Nxe1 {[%clk 0:03:10.9]} 17... Bb5 {[%clk 0:02:04.4]} 18. Rb1
{[%clk 0:03:09]} 18... Ra7 {[%clk 0:01:39.3]} 19. c4 {[%clk 0:03:06.6]} 19...
Nd7 {[%clk 0:01:40.3]} 20. Bf1 {[%clk 0:02:59.9]} 20... Qc7 {[%clk 0:01:36.7]}
21. cxb5 {[%clk 0:02:59.1]} 21... axb5 {[%clk 0:01:37.7]} 22. Qg3 {[%clk
0:02:59.3]} 22... Rxa2 {[%clk 0:01:31.7]} 23. Bxb5 {[%clk 0:02:55.4]} 23... Qa5
{[%clk 0:01:22.5]} 24. Bf4 {[%clk 0:02:50.6]} 24... Ne5 {[%clk 0:01:18]} 25. Nd3
{[%clk 0:02:37.7]} 25... Ra3 {[%clk 0:01:05.9]} 26. Qh4 {[%clk 0:02:07.3]} 26...
h5 {[%clk 0:00:19.6]} 27. Nxe5 {[%clk 0:01:45.3]} 27... dxe5 {[%clk 0:00:19.7]}
28. Be3 {[%clk 0:01:46.7]} 28... Qb6 {[%clk 0:00:15.6]} 29. Bd3 {[%clk
0:01:43.3]} 29... Qd6 {[%clk 0:00:14.4]} 30. Qc4 {[%clk 0:01:35.2]} 30... f5
{[%clk 0:00:11.6]} 31. Bxc5 {[%clk 0:01:30.4]} 1-0

[Event "*** Titled Tuesday 3|2 Blitz"]
[Site "Chess.com"]
[Date "2016.03.01"]
[Round "9"]
[White "FairChess_on_YouTube"]
[Black "MITerryble"]
[Result "1-0"]
[WhiteElo "2741"]
[BlackElo "2643"]
[TimeControl "180+2"]
[EndTime "13:34:53 PST"]
[Termination "FairChess_on_YouTube won on time"]

1. d4 {[%clk 0:03:01.9]} 1... e6 {[%clk 0:03:00.9]} 2. Nf3 {[%clk 0:03:02.8]}
2... Nf6 {[%clk 0:03:01.7]} 3. Bg5 {[%clk 0:03:03.1]} 3... h6 {[%clk 0:03:00.9]}
4. Bh4 {[%clk 0:03:03.9]} 4... d6 {[%clk 0:03:01.7]} 5. e3 {[%clk 0:03:01.3]}
5... g5 {[%clk 0:03:02.4]} 6. Bg3 {[%clk 0:03:02.1]} 6... Nh5 {[%clk 0:03:02.7]}
7. Bd3 {[%clk 0:03:02.9]} 7... Bg7 {[%clk 0:03:03.8]} 8. c3 {[%clk 0:03:02.7]}
8... Nd7 {[%clk 0:03:04.4]} 9. Nbd2 {[%clk 0:02:56.7]} 9... Qe7 {[%clk
0:03:05.4]} 10. Ng1 {[%clk 0:02:53.8]} 10... Nxg3 {[%clk 0:02:56.2]} 11. hxg3
{[%clk 0:02:55.7]} 11... f5 {[%clk 0:02:53.1]} 12. g4 {[%clk 0:02:49.4]} 12...
Nf6 {[%clk 0:02:42.6]} 13. gxf5 {[%clk 0:02:49.6]} 13... exf5 {[%clk 0:02:44.5]}
14. Ne2 {[%clk 0:02:48.4]} 14... d5 {[%clk 0:02:36.8]} 15. Qb3 {[%clk
0:02:28.5]} 15... c6 {[%clk 0:02:34]} 16. O-O-O {[%clk 0:02:27.7]} 16... Be6
{[%clk 0:02:31.8]} 17. Qa4 {[%clk 0:02:22.9]} 17... a5 {[%clk 0:02:22.9]} 18. f3
{[%clk 0:02:17.7]} 18... O-O {[%clk 0:02:01.8]} 19. Qc2 {[%clk 0:02:11.1]} 19...
Bd7 {[%clk 0:01:31.9]} 20. Ng3 {[%clk 0:02:01.2]} 20... Qxe3 {[%clk 0:01:19.5]}
21. Bxf5 {[%clk 0:01:59.5]} 21... Qf4 {[%clk 0:01:16]} 22. Bxd7 {[%clk
0:01:55.9]} 22... Qxg3 {[%clk 0:01:17]} 23. Be6+ {[%clk 0:01:56.1]} 23... Kh8
{[%clk 0:01:18.3]} 24. Qg6 {[%clk 0:01:57.4]} 24... Rae8 {[%clk 0:00:23.9]} 25.
Bf7 {[%clk 0:01:55.7]} 25... Rxf7 {[%clk 0:00:09.7]} 26. Qxf7 {[%clk 0:01:56.1]}
26... Qxg2 {[%clk 0:00:10.2]} 27. Rdg1 {[%clk 0:01:45.3]} 27... Qe2 {[%clk
0:00:04.9]} 28. Rxg5 {[%clk 0:01:38.9]} 28... Qe1+ {[%clk 0:00:06.3]} 29. Kc2
{[%clk 0:01:31.5]} 29... Re7 {[%clk 0:00:03.8]} 30. Rxh6+ {[%clk 0:01:07.6]}
30... Bxh6 {[%clk 0:00:04.4]} 31. Qxf6+ {[%clk 0:01:08.8]} 31... Bg7 {[%clk
0:00:05.1]} 32. Qf5 {[%clk 0:01:03.1]} 32... Re2 {[%clk 0:00:04.9]} 33. Qc8+
{[%clk 0:01:00.4]} 33... Re8 {[%clk 0:00:02.6]} 34. Qg4 {[%clk 0:00:58.6]} 34...
Qe7 {[%clk 0:00:02.3]} 35. Ne4 {[%clk 0:00:49.6]} 1-0

[Event "*** Titled Tuesday 3|2 Blitz"]
[Site "Chess.com"]
[Date "2016.03.01"]
[Round "9"]
[White "Jahonas"]
[Black "KNVB"]
[Result "1-0"]
[WhiteElo "2204"]
[BlackElo "2340"]
[TimeControl "180+2"]
[EndTime "13:34:53 PST"]
[Termination "Jahonas won by resignation"]

1. e4 {[%clk 0:03:01.9]} 1... b6 {[%clk 0:02:56.6]} 2. Nf3 {[%clk 0:03:02.8]}
2... Bb7 {[%clk 0:02:53.3]} 3. Nc3 {[%clk 0:03:04]} 3... e6 {[%clk 0:02:03]} 4.
d4 {[%clk 0:03:02.1]} 4... Bb4 {[%clk 0:02:02.7]} 5. Bd3 {[%clk 0:03:02.8]} 5...
Nf6 {[%clk 0:02:02.3]} 6. e5 {[%clk 0:03:00.9]} 6... Ne4 {[%clk 0:02:00.9]} 7.
Bd2 {[%clk 0:03:01.2]} 7... Bxc3 {[%clk 0:01:59.1]} 8. bxc3 {[%clk 0:02:59.7]}
8... d5 {[%clk 0:01:44.8]} 9. exd6 {[%clk 0:02:59.2]} 9... Qxd6 {[%clk
0:01:44.8]} 10. Qe2 {[%clk 0:02:59]} 10... Nf6 {[%clk 0:01:42.8]} 11. h3 {[%clk
0:02:53.5]} 11... Nbd7 {[%clk 0:01:29.1]} 12. O-O {[%clk 0:02:52.6]} 12... O-O
{[%clk 0:01:15.7]} 13. a4 {[%clk 0:02:50.4]} 13... Rfe8 {[%clk 0:01:12.5]} 14.
Ne5 {[%clk 0:02:48.6]} 14... Nxe5 {[%clk 0:00:39.5]} 15. dxe5 {[%clk 0:02:41.9]}
15... Qd5 {[%clk 0:00:39]} 16. f4 {[%clk 0:02:37.9]} 16... Ne4 {[%clk
0:00:30.8]} 17. Bxe4 {[%clk 0:02:26.3]} 17... Qxe4 {[%clk 0:00:32.7]} 18. Qxe4
{[%clk 0:02:27.1]} 18... Bxe4 {[%clk 0:00:34.5]} 19. Rf2 {[%clk 0:02:20.2]}
19... Bxc2 {[%clk 0:00:32.4]} 20. a5 {[%clk 0:02:21]} 20... Be4 {[%clk
0:00:23.9]} 21. Be3 {[%clk 0:02:21.9]} 21... h5 {[%clk 0:00:17.3]} 22. Rfa2
{[%clk 0:02:22.2]} 22... Bd5 {[%clk 0:00:17.7]} 23. Rb2 {[%clk 0:02:11.4]} 23...
Kh7 {[%clk 0:00:14.5]} 24. Kf2 {[%clk 0:02:05.1]} 24... Red8 {[%clk 0:00:10.5]}
25. Rb4 {[%clk 0:01:58.9]} 25... Kg6 {[%clk 0:00:07.4]} 26. c4 {[%clk
0:01:57.6]} 26... Bc6 {[%clk 0:00:05.9]} 27. c5 {[%clk 0:01:55.7]} 27... b5
{[%clk 0:00:06.2]} 28. a6 {[%clk 0:01:43.1]} 28... Rd5 {[%clk 0:00:04.9]} 29.
Bd4 {[%clk 0:01:41.7]} 29... h4 {[%clk 0:00:03.9]} 30. Ke3 {[%clk 0:01:42.1]}
30... Kf5 {[%clk 0:00:05.3]} 31. Rg1 {[%clk 0:01:41]} 31... f6 {[%clk
0:00:05.7]} 32. g4+ {[%clk 0:01:41]} 32... hxg3 {[%clk 0:00:06.9]} 33. Rxg3
{[%clk 0:01:41]} 33... Rh8 {[%clk 0:00:08.2]} 34. Rxg7 {[%clk 0:01:34.9]} 34...
Rxh3+ {[%clk 0:00:08.7]} 35. Kf2 {[%clk 0:01:35.1]} 35... Rf3+ {[%clk
0:00:06.7]} 36. Ke2 {[%clk 0:01:34.4]} 36... Rxf4 {[%clk 0:00:07.2]} 37. exf6
{[%clk 0:01:30]} 37... Rd8 {[%clk 0:00:02.8]} 38. Rxc7 {[%clk 0:01:20.4]} 38...
Bf3+ {[%clk 0:00:03.6]} 39. Ke3 {[%clk 0:01:20.4]} 39... e5 {[%clk 0:00:04.4]}
40. Bc3 {[%clk 0:01:19.6]} 40... Rxb4 {[%clk 0:00:03.3]} 41. Bxb4 {[%clk
0:01:20.8]} 41... Bd5 {[%clk 0:00:04.6]} 42. Rxa7 {[%clk 0:01:19]} 42... Bc4
{[%clk 0:00:05.4]} 43. c6 {[%clk 0:01:18.5]} 43... Rd3+ {[%clk 0:00:06]} 44. Kf2
{[%clk 0:01:19.1]} 44... Rb3 {[%clk 0:00:06]} 45. c7 {[%clk 0:01:16]} 45... Be6
{[%clk 0:00:06.8]} 46. f7 {[%clk 0:01:16.4]} 46... Rb2+ {[%clk 0:00:07.6]} 47.
Ke1 {[%clk 0:01:15.8]} 47... Rf2 {[%clk 0:00:09.5]} 1-0